Cogmind - Beta 10.2 @@@ ROGUE MODE // 2021.03.01 @ 23:04:40 Player: malcneuro Result: Destroyed by GP-6FG(B) with Heavy Battle Rifle Performance ------------- Evolutions (3) 1500 Regions Visited (9) 1800 Robots Destroyed (125) 625 Value Destroyed (4449) 4449 Prototype IDs (23) 460 Alien Tech Used (0) 0 Bonus (649) 649 TOTAL SCORE: 9483 Bonus ------- High Alert Combat Kills 349 Aligned with FarCom 300 Cogmind --------- Core Integrity 0/700 Matter 178/300 Energy 100/100 System Corruption 9% Temperature Cool (0) Movement Walking (155) Ox1 Location -7/Zion Parts ------- > --- POWER (1) -------- (None) > --- PROPULSION (3) --- Improved Titanium Leg Myomer Leg > --- UTILITY (6) ------ Large Storage Unit High-capacity Storage Unit Advanced Targeting Computer > --- WEAPON (3) ------- Great Maul > --- INVENTORY (18) --- Carbon-fiber Leg Wheel High-capacity Battery (400) Compact Battery (300) High-capacity Matter Pod (200) Enhanced Optical Array Improved Light Armor Plating Improved Medium Armor Plating Makeshift Armor Plating Hacking Suite Makeshift Hacking Suite System Shield Riot Gun Heavy Riot Gun Heavy Assault Rifle Coil Gun Battle Cannon Improved Grenade Launcher Peak State ------------ > --- POWER ------------ Light Antimatter Reactor > --- PROPULSION ------- Improved Titanium Leg Makeshift Leg Myomer Leg > --- UTILITY ---------- Large Storage Unit High-capacity Storage Unit Advanced Targeting Computer Hardened Heavy Armor Plating Improved Medium Armor Plating > --- WEAPON ----------- Plasma Cannon Plasma Cannon Great Maul > --- INVENTORY -------- Carbon-fiber Leg Wheel High-capacity Battery Compact Battery High-capacity Matter Pod Enhanced Optical Array Improved Light Armor Plating Improved Medium Armor Plating Makeshift Armor Plating Hacking Suite Makeshift Hacking Suite System Shield Riot Gun Heavy Riot Gun Heavy Assault Rifle Coil Gun Battle Cannon Improved Grenade Launcher [Rating: 55] Favorites ----------- Power Nuclear Core Engine Ion Engine Power Core Nuclear Core Reactor Light Antimatter Reactor Propulsion Light Treads Treads Light Treads Leg Carbon-fiber Leg Wheel Wheel Utility Large Storage Unit Device Shield Generator Storage Large Storage Unit Processor Advanced Targeting Computer Hackware Hacking Suite Protection Improved Medium Armor Plating Weapon Plasma Cannon Energy Gun Lightning Gun Energy Cannon Plasma Cannon Ballistic Gun Assault Rifle Ballistic Cannon Advanced Assault Cannon Launcher Improved Grenade Launcher Impact Weapon Great Maul Slashing Weapon Axe Build | -11 -10 -10 -10 -9 -8 -7 -7 -7 -7 ------- Run | Scr Mat Min Exi Min Mat Fac Low Low Zio Slots Evolved 6 | . . . . . 4 2 . . . Power . | . . . . . . . . . . Propulsion 1 | . . . . . . 1 . . . Utility 4 | . . . . . 3 1 . . . Weapon 1 | . . . . . 1 . . . . Parts Attached 116 | 6 3 3 2 2 12 49 26 6 7 Power 11 | 1 . . . 1 3 3 2 . 1 Engine 5 | 1 . . . 1 2 1 . . . Core 5 | . . . . . 1 2 2 . . Reactor 1 | . . . . . . . . . 1 Propulsion 19 | 2 . 1 . . . 8 4 1 3 Treads 11 | 2 . 1 . . . 5 3 . . Leg 6 | . . . . . . 2 1 . 3 Wheel 2 | . . . . . . 1 . 1 . Hover . | . . . . . . . . . . Flight . | . . . . . . . . . . Utility 35 | 1 2 1 1 . 8 15 5 2 . Device 9 | . . . . . 5 3 1 . . Storage 7 | 1 2 . 1 . 1 1 1 . . Processor 2 | . . 1 . . . . . 1 . Hackware 1 | . . . . . . 1 . . . Protection 16 | . . . . . 2 10 3 1 . Artifact . | . . . . . . . . . . Weapon 51 | 2 1 1 1 1 1 23 15 3 3 Energy Gun 3 | . . . . . . 1 2 . . Energy Cannon 12 | . . . . . . 3 6 1 2 Ballistic Gun 10 | 2 1 1 1 . . 4 . 1 . Ballistic Cannon 11 | . . . . . 1 6 4 . . Launcher 11 | . . . . 1 . 7 3 . . Special Weapon . | . . . . . . . . . . Impact Weapon 2 | . . . . . . . . 1 1 Slashing Weapon 2 | . . . . . . 2 . . . Piercing Weapon . | . . . . . . . . . . Special Melee Weapon . | . . . . . . . . . . Unidentified Prototypes . | . . . . . . . . . . Parts Lost 38 | . . 1 . 2 2 11 15 1 6 Power 8 | . . . . 2 1 1 3 . 1 Propulsion 11 | . . 1 . . 1 4 4 . 1 Utility 8 | . . . . . . 1 4 1 2 Weapon 11 | . . . . . . 5 4 . 2 Highest Loss Streak 10 | . . 1 . 1 1 3 10 1 6 Average Slot Usage (%) 84 | . 99 99 99 95 72 91 76 57 86 Engine 3 | . 14 14 14 9 . 3 . . . Core 2 | . . . . . 7 3 3 . . Treads 14 | . 28 28 28 28 14 17 11 . . Leg 3 | . . . . . . 2 2 7 14 Device 6 | . . . . . 14 11 5 1 . Storage 18 | . 27 22 25 28 18 17 19 15 15 Processor 1 | . . 5 2 . . . . 3 7 Hackware 3 | . . . . . . 4 7 1 . Protection 8 | . . . . . 8 10 8 12 14 Energy Cannon 4 | . . . . . . 3 6 5 13 Ballistic Gun 6 | . 27 27 27 23 . 4 . 5 . Ballistic Cannon 4 | . . . . . 9 6 8 . . Naked Turns . | . . . . . . . . . . Heaviest Build 125 | 12 41 41 41 42 125 124 85 89 105 Greatest Support 74 | 40 40 40 40 40 40 74 68 15 65 Greatest Overweight (x) 27 | . 1 1 1 1 6 11 27 8 8 Average Overweight (x) 2 | . . . . . 3 2 2 5 2 Largest Inventory Capacity 18 | 6 16 16 16 16 18 18 18 18 18 Average Capacity 17 | 5 15 13 14 16 17 18 18 18 18 Most Carried 18 | 2 16 16 14 13 18 18 18 15 18 Average Carried 15 | 1 13 13 10 13 15 17 14 12 15 Final Capacity 18 | 6 16 10 16 16 18 18 18 18 18 Final Carried 18 | 2 16 9 13 13 17 18 15 10 18 Class Distribution -------------------- 63% | Mutant 34% | Tank Dominant Class ---------------- Mutant | -10/Materials Mutant | -10/Mines Mutant | -10/Exiles Mutant | -9/Mines Tank | -8/Materials Tank | -7/Factory Mutant | -7/Lower Caves Mutant | -7/Lower Caves Mutant | -7/Zion Resources | -11 -10 -10 -10 -9 -8 -7 -7 -7 -7 ----------- Run | Scr Mat Min Exi Min Mat Fac Low Low Zio Matter Collected 3182 | 217 54 260 . 48 306 1060 1027 108 102 Remotely . | . . . . . . . . . . Salvage Created 3157 | . 69 277 . 97 648 1475 531 60 . Parts 168 | . 6 15 . 3 36 91 14 3 . Haulers Intercepted 1 | . . . . . . 1 . . . Recyclers Shooed 1 | . . . . . . 1 . . . Parts Field Recycled . | . . . . . . . . . . Retrieved Matter . | . . . . . . . . . . Parts Self-Destructed 14 | . . . . . . . 11 3 . Prevented 3 | . . . . . . . . . 3 Kills | -11 -10 -10 -10 -9 -8 -7 -7 -7 -7 ------- Run | Scr Mat Min Exi Min Mat Fac Low Low Zio Combat Hostiles Destroyed 98 | . 3 10 . 2 26 38 18 1 . Melee 6 | . . . . . . 6 . . . Guns 16 | . 3 10 . 2 . 1 . . . Cannons 57 | . . . . . 23 22 11 1 . AOE 18 | . . . . . 3 8 7 . . Classes Destroyed 13 | . 2 1 . . 5 5 . . . Worker 8 | . . . . . 2 6 . . . Builder 8 | . . . . . 1 7 . . . Hauler 1 | . . . . . . 1 . . . Recycler 2 | . . . . . 1 1 . . . Operator 1 | . . . . . . 1 . . . Watcher 7 | . 1 . . . 3 3 . . . Swarmer 26 | . 3 6 . . 7 6 4 . . Grunt 49 | . . 4 . 2 14 20 9 . . Brawler 2 | . . . . . 1 1 . . . Duelist 3 | . . . . . . 2 1 . . Sentry 7 | . . . . . 4 2 1 . . Hunter 3 | . . . . . . 1 1 1 . Programmer 8 | . . . . . . 6 2 . . Best Kill Streak 11 | . 3 3 . 2 11 10 4 1 . Combat Bots Only 8 | . 3 3 . 2 8 6 4 1 . Max Kills in Single Turn 5 | . 2 2 . 1 5 4 2 1 . Gunslinging 1 | . 1 1 . . . . . . . Exploded 3 | . . . . . 3 2 2 . . Melee 1 | . . . . . . 1 . . . Uniques/NPCs Destroyed . | . . . . . . . . . . Combat | -11 -10 -10 -10 -9 -8 -7 -7 -7 -7 -------- Run | Scr Mat Min Exi Min Mat Fac Low Low Zio Damage Taken 7258 | . 89 439 . 276 287 2764 2286 150 967 Core 816 | . 12 27 . 28 35 137 494 . 83 Absorbed by Shields 610 | . . . . . 79 531 . . . Core Remaining (%) 88 | 100 . . . 73 93 . . . . Volleys Fired 175 | . 8 29 . 4 . 79 47 8 . Largest 3 | . 2 2 . 2 . 3 3 2 . Hottest 223 | . 40 40 . 40 . 151 223 103 . Shots Fired 484 | . 16 58 . 8 83 208 95 15 1 Gun 150 | . 16 58 . 8 . 60 3 5 . Cannon 304 | . . . . . 83 124 86 10 1 Launcher 30 | . . . . . . 24 6 . . Special . | . . . . . . . . . . Kinetic 352 | . 16 58 . 8 83 141 41 5 . Thermal 96 | . . . . . . 37 48 10 1 Explosive 25 | . . . . . . 19 6 . . Electromagnetic 11 | . . . . . . 11 . . . Robot Hit Streak 23 | . 4 17 . 6 20 14 23 4 5 Robot Miss Streak 6 | . 3 4 . 1 2 6 5 2 . Penetration Max . | . . . . . . . . . . Secondary Targets 8 | . 2 5 . 1 . . . . . Max Gunslinging Chain 1 | . 1 1 . 1 . . . . . Autonomous 123 | . . . . . 83 40 . . . Shots Hit Robots 354 | . 9 43 . 7 66 154 65 9 1 Core Hits 192 | . 6 16 . 5 31 101 31 2 . Critical Hits 7 | . . 1 . . 4 1 1 . . Critical Kills 4 | . . . . . 2 1 1 . . Critical Parts Destroyed 3 | . . 1 . . 2 . . . . Melee Attacks 6 | . . . . . . 6 . . . Impact . | . . . . . . . . . . Slashing 6 | . . . . . . 6 . . . Piercing . | . . . . . . . . . . Sneak Attacks . | . . . . . . . . . . Combat Hostiles . | . . . . . . . . . . Follow-up Attacks . | . . . . . . . . . . Damage Inflicted 16063 | . 107 454 . 93 6392 6769 2094 154 . Guns 1317 | . 107 454 . 93 . 582 51 30 . Cannons 10785 | . . . . . 5391 3868 1402 124 . Explosions 3713 | . . . . . 1001 2071 641 . . Melee 164 | . . . . . . 164 . . . Ramming 84 | . . . . . . 84 . . . Kinetic 10724 | . 107 454 . 93 5391 3992 657 30 . Thermal 2350 | . . . . . 1001 429 796 124 . Explosive 2356 | . . . . . . 1715 641 . . Electromagnetic 385 | . . . . . . 385 . . . Impact . | . . . . . . . . . . Slashing 164 | . . . . . . 164 . . . Piercing . | . . . . . . . . . . Highest Corruption 9 | . . . . . . 9 9 9 9 Average Corruption 6 | . . . . . . 5 5 9 9 Corruption Purged 11 | . . . . . . 6 5 . . Effects 248 | . . . . . . 79 85 36 48 Message Errors 63 | . . . . . . 22 22 10 9 Matter Fused 58 | . . . . . . 14 18 7 19 Heat Flow Errors 25 | . . . . . . 9 9 4 3 Energy Discharges 41 | . . . . . . 8 17 9 7 Parts Rejected 2 | . . . . . . 1 1 . . Data Loss (minor) 25 | . . . . . . 9 10 2 4 Data Loss (major) 11 | . . . . . . 5 . 2 4 Misfires 8 | . . . . . . 3 2 2 1 Targeting Errors 11 | . . . . . . 6 4 . 1 Weapon Failures 4 | . . . . . . 2 2 . . Overload Shots . | . . . . . . . . . . Overflow Damage 1933 | . . . . . 1396 462 75 . . Projectiles 1753 | . . . . . 1279 399 75 . . Explosions 174 | . . . . . 117 57 . . . Melee 6 | . . . . . . 6 . . . Knockbacks 64 | . . . . . 28 27 9 . . Impact . | . . . . . . . . . . Kinetic 58 | . . . . . 26 23 9 . . Secondary 6 | . . . . . 2 4 . . . Self-Inflicted Damage 156 | . . . . . 54 102 . . . Shots 6 | . . . . . 1 5 . . . Rammed 17 | . . . . . . 17 . . . Targets Rammed 20 | . . . . . . 20 . . . Kicked . | . . . . . . . . . . Crushed 3 | . . . . . . 3 . . . Highest Temperature 878 | . . 9 . . . 457 878 252 225 Average Temperature 137 | . . 3 . . . 128 179 89 78 Received Heat Transfer 1386 | . . 141 . 39 60 759 351 . 36 Effects 22 | . . . . . . 6 14 2 . Shutdowns 2 | . . . . . . 2 . . . Energy Bleed 4 | . . . . . . 1 3 . . Interference 4 | . . . . . . 1 1 2 . Matter Decay 2 | . . . . . . . 2 . . Damage (minor) 3 | . . . . . . 1 2 . . Damage (major) 6 | . . . . . . 1 5 . . Damage (core) 1 | . . . . . . . 1 . . Siege Activations . | . . . . . . . . . . Robots Corrupted 1 | . . . . . . 1 . . . Combat Hostiles 1 | . . . . . . 1 . . . Parts Fried 1 | . . . . . . 1 . . . Impact Corruptions 2 | . . . . . . 2 . . . Robots Melted . | . . . . . . . . . . Combat Hostiles . | . . . . . . . . . . Parts Melted 6 | . . . . . . 1 5 . . Heat Transferred 3197 | . . . . . 700 840 1407 250 . Parts Sabotaged . | . . . . . . . . . . Parts Stolen . | . . . . . . . . . . Parts Stripped . | . . . . . . . . . . Power Chain Reactions 2 | . . . . . . 2 . . . Missiles Intercepted . | . . . . . . . . . . Alert | -11 -10 -10 -10 -9 -8 -7 -7 -7 -7 ------- Run | Scr Mat Min Exi Min Mat Fac Low Low Zio Peak Influence 851 | . 85 120 . 40 511 851 . . . Initial 221 | . . . . . 11 221 . . . Average 282 | . 34 35 . 31 358 361 . . . Maximum Alert Level 3 | . . . . . 2 3 . . . Low Security (%) 25 | 100 100 100 . 100 . 2 . . . Level 1 55 | . . . . . 55 76 . . . Level 2 13 | . . . . . 44 11 . . . Level 3 5 | . . . . . . 9 . . . Level 4 . | . . . . . . . . . . Level 5 . | . . . . . . . . . . High Security . | . . . . . . . . . . Max Security . | . . . . . . . . . . Squads Dispatched 15 | . . . . . 1 14 . . . Investigation 2 | . . . . . . 2 . . . Extermination 6 | . . . . . . 6 . . . Reinforcement 5 | . . . . . 1 4 . . . Assault 2 | . . . . . . 2 . . . Garrison . | . . . . . . . . . . Intercept . | . . . . . . . . . . Construction Impeded 2 | . . . . . . 2 . . . Haulers Reinforced 2 | . . . . . . 2 . . . Stealth | -11 -10 -10 -10 -9 -8 -7 -7 -7 -7 --------- Run | Scr Mat Min Exi Min Mat Fac Low Low Zio Distress Signals 5 | . . . . . 1 4 . . . Communications Jammed . | . . . . . . . . . . Distress Signals . | . . . . . . . . . . Times Spotted 136 | . 5 10 . 4 26 61 18 2 10 Peak Tracking Total 10 | . 3 3 . 2 6 9 5 1 10 Tactical Retreats 9 | . . . . . 3 3 2 . 1 Traps | -11 -10 -10 -10 -9 -8 -7 -7 -7 -7 ------- Run | Scr Mat Min Exi Min Mat Fac Low Low Zio Traps Triggered 6 | . 1 . . . . 5 . . . Indirectly . | . . . . . . . . . . Trap Hack Attempts . | . . . . . . . . . . Triggered . | . . . . . . . . . . Disarmed . | . . . . . . . . . . Reprogrammed . | . . . . . . . . . . Reused . | . . . . . . . . . . Traps Extracted . | . . . . . . . . . . Installed . | . . . . . . . . . . Triggered . | . . . . . . . . . . Exploded 1 | . . . 1 . . . . . . Machines | -11 -10 -10 -10 -9 -8 -7 -7 -7 -7 ---------- Run | Scr Mat Min Exi Min Mat Fac Low Low Zio Machines Disabled 18 | . . . . . 7 10 . . 1 Max in Single Turn 5 | . . . . . 5 2 . . 1 Garrison Access 1 | . . . . . . 1 . . . Machines Sabotaged . | . . . . . . . . . . Garrisons Compromised . | . . . . . . . . . . Overloaded Fab Kills . | . . . . . . . . . . Fab Network Shutdowns . | . . . . . . . . . . Hacking | -11 -10 -10 -10 -9 -8 -7 -7 -7 -7 --------- Run | Scr Mat Min Exi Min Mat Fac Low Low Zio Machines Accessed 23 | . 3 . 1 . 5 12 2 . . Terminals 11 | . 2 . . . 4 5 . . . Fabricators 4 | . . . . . . 4 . . . Repair Stations 2 | . . . . . . 2 . . . Recycling Units 1 | . 1 . . . . . . . . Scanalyzers 2 | . . . . . 1 1 . . . Garrison Access . | . . . . . . . . . . Total Hacks 54 | . 8 . 1 . 14 26 5 . . Successful 34 | . 5 . 1 . 8 15 5 . . Failed 20 | . 3 . . . 6 11 . . . Catastrophic 3 | . . . . . . 3 . . . Database Lockouts . | . . . . . . . . . . Manual 19 | . 3 . 1 . 6 8 1 . . Terminals 28 | . 7 . . . 11 10 . . . Fabricators 11 | . . . . . . 11 . . . Repair Stations 4 | . . . . . . 4 . . . Recycling Units 1 | . 1 . . . . . . . . Scanalyzers 4 | . . . . . 3 1 . . . Garrison Access . | . . . . . . . . . . Terminal Hacks 20 | . 4 . 1 . 6 4 5 . . Record 4 | . . . . . . . 4 . . Part Schematic 3 | . . . . . 2 1 . . . Robot Analysis 1 | . 1 . . . . . . . . Open Door 1 | . . . . . . . 1 . . Level Access Points 1 | . . . . . 1 . . . . Branch Access Points 3 | . 1 . . . 1 1 . . . Emergency Access Points 1 | . 1 . . . . . . . . Terminal Index 1 | . 1 . . . . . . . . Alert Level 2 | . . . . . 1 1 . . . Unreport Threat 2 | . . . . . 1 1 . . . EX-Prototype ID Bank 1 | . . . 1 . . . . . . Fabricator Hacks 7 | . . . . . . 7 . . . Load Schematic 5 | . . . . . . 5 . . . Build 2 | . . . . . . 2 . . . Repair Station Hacks 4 | . . . . . . 4 . . . Scan Component 2 | . . . . . . 2 . . . Repair 2 | . . . . . . 2 . . . Recycling Unit Hacks 1 | . 1 . . . . . . . . Report Inventory 1 | . 1 . . . . . . . . Scanalyzer 2 | . . . . . 2 . . . . Insert Component 1 | . . . . . 1 . . . . Analyze 1 | . . . . . 1 . . . . Garrison Access Hacks . | . . . . . . . . . . Unauthorized Hacks . | . . . . . . . . . . Terminals . | . . . . . . . . . . Fabricators . | . . . . . . . . . . Repair Stations . | . . . . . . . . . . Recycling Units . | . . . . . . . . . . Scanalyzers . | . . . . . . . . . . Garrison Access . | . . . . . . . . . . Data Cores Recovered 1 | . . . . . . 1 . . . Used 1 | . . . . . . 1 . . . Hacking Detections 13 | . 1 . . . 3 9 . . . Full Trace Events 2 | . . . . . . 2 . . . Feedback Events . | . . . . . . . . . . Feedback Blocked . | . . . . . . . . . . Robot Schematics Acquired . | . . . . . . . . . . Robots Built . | . . . . . . . . . . Matter . | . . . . . . . . . . Time . | . . . . . . . . . . Total Robot Build Rating . | . . . . . . . . . . Part Schematics Acquired 4 | . . . . . 3 1 . . . Parts Built 4 | . . . . . . 4 . . . Matter 226 | . . . . . . 226 . . . Time 113 | . . . . . . 113 . . . Total Part Build Rating 6 | . . . . . . 6 . . . Parts Repaired 2 | . . . . . . 2 . . . Time 70 | . . . . . . 70 . . . Parts Recycled . | . . . . . . . . . . Recycled Matter . | . . . . . . . . . . Retrieved Matter . | . . . . . . . . . . Retrieved Components . | . . . . . . . . . . Parts Scanalyzed 1 | . . . . . 1 . . . . Part Schematics Acquired 1 | . . . . . 1 . . . . Parts Damaged . | . . . . . . . . . . Bothacking | -11 -10 -10 -10 -9 -8 -7 -7 -7 -7 ------------ Run | Scr Mat Min Exi Min Mat Fac Low Low Zio Used RIF Installer . | . . . . . . . . . . Robots Hacked . | . . . . . . . . . . Non-combat . | . . . . . . . . . . Combat . | . . . . . . . . . . Robot Hacks Applied . | . . . . . . . . . . Relay Couplers Released 1 | . . . . . . 1 . . . Machine Destruction 1 | . . . . . . 1 . . . Robots Rewired . | . . . . . . . . . . Allies Hacked . | . . . . . . . . . . Hacks Repelled . | . . . . . . . . . . Allies | -11 -10 -10 -10 -9 -8 -7 -7 -7 -7 -------- Run | Scr Mat Min Exi Min Mat Fac Low Low Zio Total Allies . | . . . . . . . . . . Largest Group . | . . . . . . . . . . Highest-Rated Group . | . . . . . . . . . . Highest-Rated Ally . | . . . . . . . . . . Total Orders . | . . . . . . . . . . Ally Attacks . | . . . . . . . . . . Total Damage . | . . . . . . . . . . Kills . | . . . . . . . . . . Allies Corrupted . | . . . . . . . . . . Allies Melted . | . . . . . . . . . . Intel | -11 -10 -10 -10 -9 -8 -7 -7 -7 -7 ------- Run | Scr Mat Min Exi Min Mat Fac Low Low Zio Robot Analysis Total 1 | . 1 . . . . . . . . Derelict Logs Recovered 6 | . . 2 . . . . . 1 3 Drone Launches . | . . . . . . . . . . Drone Recoveries . | . . . . . . . . . . Exploration | -11 -10 -10 -10 -9 -8 -7 -7 -7 -7 ------------- Run | Scr Mat Min Exi Min Mat Fac Low Low Zio Turns Passed 15801 | 81 507 1377 954 36 1185 5198 3719 1223 1521 Spaces Moved 7230 | 45 271 718 540 12 487 2260 1556 519 822 Core 26 | 1 . . . . . . 25 . . Treads 5200 | 44 271 718 540 12 487 2045 1083 . . Legs 1615 | . . . . . . 105 448 366 696 Wheels 389 | . . . . . . 110 . 153 126 Hover . | . . . . . . . . . . Flight . | . . . . . . . . . . Fastest Speed 50 | 50 160 160 160 160 200 140 180 160 150 Average Speed 200 | 157 167 170 175 173 226 195 226 230 182 Slowest Speed 1400 | 160 180 180 180 180 280 450 1400 270 190 Overloaded Moves . | . . . . . . . . . . Propulsion Burnouts . | . . . . . . . . . . Robots Hopped . | . . . . . . . . . . Cave-ins Triggered . | . . . . . . . . . . Exploration Rate (%) 57 | 4 45 99 92 10 44 52 96 58 72 Regions Visited 9 Branch Regions 6 Pre-discovered Areas 3 | . . 1 . . . . . 1 1 Known Exits Taken 4 | . 1 1 . . 1 1 . . . Unknown Exits Taken 5 | 1 . . 1 1 . . 1 1 . Scrap Searched 5 | . . 1 . . . . 3 . 1 Spaces Dug 14 | . . . . . . 14 . . . Terrain Destroyed 370 | . . . . . 63 246 60 1 . Melee . | . . . . . . . . . . Projectile 24 | . . . . . 14 8 1 1 . AOE 346 | . . . . . 49 238 59 . . Terrain Rammed . | . . . . . . . . . . Walls Destroyed . | . . . . . . . . . . Machines Disabled . | . . . . . . . . . . Actions | -11 -10 -10 -10 -9 -8 -7 -7 -7 -7 --------- Run | Scr Mat Min Exi Min Mat Fac Low Low Zio Total 8247 | 52 313 814 545 18 571 2886 1675 534 839 Wait 539 | . 1 51 . 1 53 413 20 . . Move 7221 | 44 270 717 539 11 486 2259 1555 518 822 Hop . | . . . . . . . . . . Pick Up 88 | 2 22 4 3 . 9 27 13 1 7 Fast Attach 45 | 6 2 . . 1 7 20 6 1 2 Attach 40 | . 1 2 1 . 4 10 15 4 3 Detach 18 | . . . 1 . 4 4 6 . 3 Swap 31 | . . 1 1 1 1 19 5 1 2 Drop 64 | . 9 10 . . 7 29 8 1 . Fire 175 | . 8 29 . 4 . 79 47 8 . Melee 6 | . . . . . . 6 . . . Ram . | . . . . . . . . . . Kick . | . . . . . . . . . . Crush 20 | . . . . . . 20 . . . Escape Stasis . | . . . . . . . . . . Rewire . | . . . . . . . . . . Trap . | . . . . . . . . . . Miscellaneous . | . . . . . . . . . . Route ------- -11/Scrapyard -10/Materials (discovered 2 exits: *Mat / *Min) -10/Mines (discovered 3 exits: *Mat x2 / *Exi) -10/Exiles (discovered 2 exits: [*Min x2]) -9/Mines -8/Materials (discovered 3 exits: *Fac x3) -7/Factory (discovered 5 exits: [*Fac x3] / *Low x2) -7/Lower Caves -7/Lower Caves (discovered 2 exits: [*Fac] / *Zio) -7/Zion (discovered 1 exit: [*Pro]) History --------- Turn | Location | Event 31 | -11/Scrapyard | Discovered new exit (range 16) 82 | -11/Scrapyard | Entered Materials 208 | -10/Materials | Identified exit to Mines 309 | -10/Materials | Build established: Mutant 318 | -10/Materials | Discovered new exit (range 16) 589 | -10/Materials | Entered Mines 758 | -10/Mines | A weapon hastily lodged in a ceiling crevice suddenly fell to the ground 937 | -10/Mines | Learned 2 Materials zone layouts 1131 | -10/Mines | Discovered new exit (range 14) 1216 | -10/Mines | Learned Materials interactive machine intel 1240 | -10/Mines | Discovered new exit (range 7) 1381 | -10/Mines | Identified exit to Materials 1820 | -10/Mines | Learned location of Storage (-9) 1955 | -10/Mines | Deemed a non-threat by the Exiles lab entrance 1956 | -10/Mines | Discovered new exit (range 5) 1963 | -10/Mines | Identified exit to Exiles 1966 | -10/Mines | Entered Exiles 2000 | -10/Exiles | Discovered new exit (range 15) 2022 | -10/Exiles | Met 8R-AWN 2054 | -10/Exiles | Met EX-HEX 2194 | -10/Exiles | Met EX-DEC 2238 | -10/Exiles | Visited The Gauntlet 2519 | -10/Exiles | Met EX-BIN 2559 | -10/Exiles | Aligned with FarCom system 2561 | -10/Exiles | Given EX-Vault access code 2719 | -10/Exiles | Opened EX-Vault 2745 | -10/Exiles | Found AWS/Autocannon 2783 | -10/Exiles | Warned to stay clear of 0b10 Research branches 2793 | -10/Exiles | Exiles lab attacked by MAIN.C 2900 | -10/Exiles | Discovered new exit (range 11) 2920 | -10/Exiles | Left Exiles lab with AWS/Autocannon 2920 | -10/Exiles | Entered Mines 2937 | -9/Mines | Assembled infested the area 2942 | -9/Mines | Assisted by a Guerilla fighting off Assembled 2949 | -9/Mines | Discovered new exit (range 5) 2956 | -9/Mines | Entered Materials 2956 | -8/Materials | Evolved 4 slots: Utility x3, Weapon x1 2958 | -8/Materials | Loaded intel: 19 interactive machine locations 3017 | -8/Materials | Destroyed 8 combat bots 3100 | -8/Materials | Identified exit to Factory 3519 | -8/Materials | Build established: Tank 4141 | -8/Materials | Entered Factory 4141 | -7/Factory | Evolved 2 slots: Propulsion x1, Utility x1 4218 | -7/Factory | Fabricated Weapon Shielding (x2) 5197 | -7/Factory | Discovered new exit (range 6) 5908 | -7/Factory | Fabricated Imp. Treads (x2) 6463 | -7/Factory | Discovered new exit (range 15) 6553 | -7/Factory | Repaired Shield Generator 7184 | -7/Factory | Identified exit to Lower Caves 8531 | -7/Factory | Lost 3 parts (3w) 8941 | -7/Factory | First assault squad dispatched 9018 | -7/Factory | Repaired Nuclear Core 9283 | -7/Factory | Discovered new exit (range 8) 9318 | -7/Factory | Build established: Mutant 9339 | -7/Factory | Entered Lower Caves 9467 | -7/Lower Caves | Lost 3 parts (1p1n1u) 11155 | -7/Lower Caves | Encountered a Warlord checkpoint 11518 | -7/Lower Caves | Core integrity fell below 50% 11543 | -7/Lower Caves | Core integrity fell below 20% 11567 | -7/Lower Caves | Lost 10 parts (2p3n2u3w) 11935 | -7/Lower Caves | Learned location of 1 exit from Research 11935 | -7/Lower Caves | Learned Factory trap positions 11935 | -7/Lower Caves | Learned Factory stockpile data 12696 | -7/Lower Caves | Discovered new exit (range 15) 13058 | -7/Lower Caves | Entered another Lower Caves area 13451 | -7/Lower Caves | Discovered new exit (range 15) 13540 | -7/Lower Caves | Learned location of Extension (-6) 14213 | -7/Lower Caves | Discovered new exit (range 10) 14281 | -7/Lower Caves | Entered Zion 14413 | -7/Zion | Learned location of 1 exit from Factory 14530 | -7/Zion | Discovered new exit (range 12) 14809 | -7/Zion | Learned Factory emergency access door positions 15056 | -7/Zion | Loaded intel: 5 derelict terminal locations 15132 | -7/Zion | Learned Factory garrison access intel 15729 | -7/Zion | Attacked by Zionites 15771 | -7/Zion | Spotted GP-6FG(B) 15774 | -7/Zion | Spotted 15-N5B(B) 15802 | -7/Zion | Destroyed by GP-6FG(B) with Heavy Battle Rifle Last Messages --------------- 15733_ 5W-K2W(z) pulls a Unknown Energy Gun out of the Twisted Machinery. 15734_ VX-96L(z) pulls a Unknown Slashing Weapon out of the Twisted Machinery. 15745_ System corrupted: Energy discharge (-59). 15764_ System corrupted: Matter fused (-7). G8-FUL(z) bursts out of the Twisted Machinery. 15769_ G8-FUL(z) pulls a Mak. Sword out of the Twisted Machinery. 15779_ Critical hit. 15781_ Knocked back. 15784_ Hrd. Heavy Armor Plating destroyed. 15788_ System corrupted: Energy discharge (-42). 15788_ Knocked back. 15790_ Plasma Cannon destroyed. 15798_ 8N-CQZ(z) destroyed. 15798_ JM-EW8(z) suffers critical hit. 15798_ JM-EW8(z) knocked back. 15800_ Mak. Leg destroyed. 15800_ Imp. Medium Armor Plating destroyed. 15802_ Lgt. Antimatter Reactor destroyed. 15802_ Plasma Cannon destroyed. Map ----- +----------------------------------------------------+ | ?? "????????????????????????????????????????????## | | ? ??????????????????????????????????????????? | | ??????????????????????????????????????????? | | "??????????????????????????????????????????< | | ??????????????????????????????????#####??? | | "??????????????????????????????????##/ !##?? | | "??????????????????????????????????#/ #?? | | """???????????????????????????????????# !#?? | | ""#???????????????????????????????????##= ##?? | | ""#???????????????????????????????????### ##?? # | | """#???????????????????##########?????# #?? # | | ""##??????????????????##""# ??????# ### | | ""#?????????????????##"""" ?????## ## | | """#????????????????#" #?????# | | ""#"?????????????????# ####### ## | | ""#???????????????????????" ## ### | | "##???????????????????????# #?## | | #####?????????????????????## #### #??### | | ###"##?????????????????????## #??# ######?## | | """""##?????????????????????# #??# ### #?# | | """"""#########?????????????# #### #?# | | """"# ";###########???# ## #?# | | """# BB #???## ##?# | | "### BB ""#????### ##?## | | "# = #####;## #### #??### | | *%z zz @ #??## #????# | | "" z #???# ###### | | """"" # ######## #??# ### | | """"""### BB """#?????? #??# ## | | ""#"###?# BB """"" """"#?????## #??## | | ""###???# "############??????#####???## ## | | ""#?????#####?????????????######??????## # | | ""#???????????????#####?### ######?# | | """#???????????????#| ["## #?# | | ""##???????????????#" "" ### ### | | ###????????????????#| ## ### # | | ""#????????????????#" "" ## # | | ""#????????????????# |"## # | | ""#????????????????#####?### ### | | ""####?????????????????????# ## #?# | | """""##????????????????????## ############ #?# | | """""#?????????????????????######??????????###?# | | ""##???????????????????????????????????????## | | "#"#???????????????????????????????????????# | | ""#????????????????????????????????????????# | | ""##????????????????????????????????????????## | | """###?????????????????????????????????????## | | ""#""#?????????????????????????????????????# | | """#??????????????????????????????????????## | | "##?????????????????????????????????????# | +----------------------------------------------------+ Best States ------------- Heat Dissipation 41 Energy Generation 21 Energy Capacity 690 Matter Stores 300 Matter Capacity 300 Sight Range 16 Terrain Scan Density 10 Base Temperature (-) 100 Armor Coverage 825 Utility Shielding 33 Weapon Shielding 33 Evasion (%) 40 Targeting Accuracy 8 Recoil Reduction 3 Offensive Hacking 10 Item Schematics ----------------- Imp. Grenade Launcher | -8/Materials | Scanalyzed Weapon Shielding | -8/Materials | Hacked Imp. Treads | -8/Materials | Hacked Imp. Weapon Shielding | -7/Factory | Hacked Robot Schematics ------------------ None Fabricated ------------ Weapon Shielding | x2 | -7/Factory Imp. Treads | x2 | -7/Factory Alien Tech Used ----------------- None Achievements -------------- Dynamic Key Just What I Needed Significant Disruption Challenges ------------ None Game ------ Seed GaussIntegratedRifle Manual? 0 Play Time 02:44:31 Cumulative 20.6 hours Start 2021.02.24 @ 23:54:45 End 2021.03.01 @ 23:04:40 Sessions 8 Manual Loads 0 Difficulty Rogue Special Mode None Game No. 11 Rogue 9 Adventurer 0 Explorer 2 Win Type - Total 1 Types 1/0/0/0/0/0/0/0/0 Lore% 27 Gallery% 30 Achievement% 28 Wizard Run 0 Options --------- ASCII 0 Keyboard 0 Movement Arrows Keybinds 0 Fullscreen 2 Font 24/Smallcaps Map View 76x50 Tactical HUD 1 Map Filters NONE Filters NONE Steam 1 RUN: 1ed1a7db-46f4-481c-aed2-c0afddb46814